bitfinex/quotes_SOLUSD_20250918
["timestamp","ask_amount","ask_price","bid_price","bid_amount"]
[1758193110898,2.73258369,246.2,246.19,0.74]
[1758193111110,0.06,246.21,246.19,0.74]
[1758193111389,31.08,246.2,246.19,0.74]
[1758193111784,0.06,246.21,246.19,0.74]
[1758193112190,31.08,246.2,246.19,4.80183422]
[1758193112576,0.06,246.21,246.2,26.0]
[1758193112902,31.14,246.21,246.2,30.73173842]
[1758193113472,0.06,246.21,246.2,30.73173842]
[1758193113699,31.14,246.21,246.2,30.73173842]
[1758193115297,0.06,246.21,246.2,30.73173842]
[1758193123098,0.06,246.21,246.2,30.76173842]
[1758193125610,0.06,246.21,246.2,0.03]
[1758193126515,2.35247541,246.21,246.2,0.03]
[1758193130400,0.06,246.21,246.2,0.03]
[1758193130599,2.35247541,246.21,246.2,0.03]
[1758193131412,0.06,246.21,246.2,0.03]
[1758193131614,2.35247541,246.21,246.2,0.03]
[1758193132614,0.06,246.21,246.2,0.7]
[1758193132813,0.06,246.21,246.2,0.03]
[1758193133802,7.13404886,246.21,246.2,0.03]
[1758193135403,6.41404886,246.21,246.2,0.03]
[1758193135608,2.35247541,246.21,246.2,0.03]
[1758193135808,6.41404886,246.21,246.2,0.03]
[1758193136207,33.41247541,246.21,246.2,0.74]
[1758193136399,33.41247541,246.21,246.2,0.03]
[1758193136820,33.41247541,246.21,246.2,0.74]
[1758193137218,33.41247541,246.21,246.2,0.03]
[1758193137615,31.12,246.21,246.2,0.03]
[1758193138209,31.12,246.21,246.2,0.74]
[1758193138409,33.41247541,246.21,246.2,0.74]
[1758193138924,33.41247541,246.21,246.2,0.03]
[1758193139113,38.18404886,246.21,246.2,0.03]
[1758193139312,38.468372,246.21,246.2,0.03]
[1758193140028,28.63679855,246.21,246.2,0.03]
[1758193140206,33.69679855,246.21,246.2,0.03]
[1758193140520,37.758372,246.21,246.2,0.03]
[1758193140923,33.69679855,246.21,246.2,0.03]
[1758193141125,37.758372,246.21,246.2,0.03]
[1758193141727,33.69679855,246.21,246.2,0.03]
[1758193142515,31.40432314,246.21,246.2,0.03]
[1758193142907,0.34432314,246.21,246.2,0.03]
[1758193143103,31.40432314,246.21,246.2,0.03]
[1758193143526,33.69679855,246.21,246.2,0.03]
[1758193144828,37.758372,246.21,246.2,0.03]
[1758193145624,35.46589659,246.21,246.2,0.03]
[1758193145832,37.758372,246.21,246.2,0.03]
[1758193147330,38.428372,246.21,246.2,0.03]
[1758193147521,41.14919257,246.21,246.2,0.03]
[1758193148127,42.77557246,246.21,246.2,0.03]
[1758193148522,43.38017247,246.21,246.2,0.03]
[1758193149114,12.32017247,246.21,246.2,0.03]
[1758193149439,42.71017247,246.21,246.2,0.03]
[1758193149830,41.08379258,246.21,246.2,0.03]
[1758193151344,10.02379258,246.21,246.2,0.03]
[1758193151538,41.08379258,246.21,246.2,0.03]
[1758193153220,5.96221913,246.21,246.2,0.03]
[1758193153420,37.02221913,246.21,246.2,0.03]
[1758193153626,10.02379258,246.21,246.2,0.03]
[1758193154038,41.08379258,246.21,246.2,0.03]
[1758193155041,38.36297201,246.21,246.2,0.03]
[1758193155524,39.03297201,246.21,246.2,0.03]
[1758193155839,39.16342589,246.21,246.2,0.03]
[1758193157136,37.69667812,246.21,246.2,0.03]
[1758193157338,39.16342589,246.21,246.2,0.03]
[1758193158146,39.83342589,246.21,246.2,0.03]
[1758193158844,38.20724437,246.21,246.2,0.03]
[1758193159943,0.28432314,246.2,246.19,0.03]
[1758193160156,1.75107091,246.2,246.19,0.03]
[1758193160448,10.5286707,246.2,246.19,0.03]
[1758193161141,12.15518285,246.2,246.19,0.03]
[1758193161644,16.21692127,246.2,246.19,0.03]
[1758193162433,14.59040912,246.2,246.19,0.03]
[1758193163248,45.65040912,246.2,246.19,0.03]
[1758193164648,44.98040912,246.2,246.19,0.03]
[1758193167441,70.98040912,246.2,246.19,0.03]
[1758193168554,69.51366135,246.2,246.19,0.03]
[1758193168758,70.98040912,246.2,246.19,0.03]
[1758193169842,38.45366135,246.2,246.19,0.03]
[1758193170158,70.98040912,246.2,246.19,0.03]
[1758193170862,73.70213213,246.2,246.19,0.03]
[1758193171750,74.37213213,246.2,246.19,0.03]
[1758193173152,73.70213213,246.2,246.19,0.03]
[1758193173657,74.40213213,246.2,246.19,0.03]
[1758193173854,75.8688799,246.2,246.19,0.03]
[1758193174961,75.1688799,246.2,246.19,0.03]
[1758193175268,73.70213213,246.2,246.19,0.03]
[1758193178270,42.64213213,246.2,246.19,0.03]
[1758193178446,73.70213213,246.2,246.19,0.03]
[1758193179464,42.64213213,246.2,246.19,0.03]
[1758193179647,73.70213213,246.2,246.19,0.03]
[1758193181264,73.70316565,246.2,246.19,0.03]
[1758193181768,26.28432314,246.18,246.17,0.03]
[1758193181974,67.40081852,246.18,246.17,0.03]
[1758193182151,68.10081852,246.18,246.17,0.03]
[1758193182966,67.40081852,246.18,246.17,0.03]
[1758193183564,79.88683423,246.18,246.17,0.03]
[1758193185058,119.21093571,246.18,246.17,0.03]
[1758193188773,111.87719686,246.18,246.17,0.03]
[1758193189074,113.34394463,246.18,246.17,0.7]
[1758193190487,111.87719686,246.18,246.17,0.7]
[1758193190676,113.34394463,246.18,246.17,0.7]
[1758193192568,113.34394463,246.18,246.17,0.03]
[1758193192972,113.34394463,246.18,246.17,0.7]
[1758193194086,113.34394463,246.18,246.17,0.03]
[1758193194552,113.34394463,246.18,246.17,0.7]
[1758193197607,82.28394463,246.18,246.17,0.7]
[1758193197784,113.34394463,246.18,246.17,0.7]
[1758193198303,116.7473903,246.18,246.17,0.7]
[1758193198885,115.28064253,246.18,246.17,0.7]
[1758193199182,116.7473903,246.18,246.17,0.03]
[1758193199807,116.7473903,246.18,246.17,0.71]
[1758193200286,42.04685801,246.18,246.17,0.71]
[1758193200494,74.57360578,246.18,246.17,0.03]
[1758193200686,74.71576735,246.18,246.17,0.03]
[1758193200886,75.57792892,246.18,246.17,0.03]
[1758193201390,74.86416728,246.18,246.17,0.71]
[1758193201695,69.05102797,246.18,246.17,0.71]
[1758193202002,70.65993731,246.18,246.17,0.71]
[1758193202311,70.80209888,246.18,246.17,0.71]
[1758193202489,39.45777574,246.18,246.17,0.71]
[1758193202690,70.51777574,246.18,246.17,0.71]
[1758193202884,69.05102797,246.18,246.17,0.71]
[1758193204307,70.51777574,246.18,246.17,0.71]
[1758193205018,35.25574266,246.18,246.17,0.71]
[1758193205592,33.78899489,246.18,246.17,0.71]
[1758193205792,35.25574266,246.18,246.17,0.71]
[1758193206002,33.78899489,246.18,246.17,0.71]
[1758193207411,31.06,246.18,246.17,0.71]
[1758193208490,39.59933931,246.18,246.17,0.03]
[1758193208811,40.25933931,246.18,246.17,0.03]
[1758193210012,67.72608708,246.18,246.17,0.03]
[1758193210190,71.13733069,246.18,246.17,0.03]
[1758193210795,69.67058292,246.18,246.17,0.03]
[1758193211002,65.59933931,246.18,246.17,0.03]
[1758193211234,66.25933931,246.18,246.17,0.03]
[1758193211413,65.59933931,246.18,246.17,0.03]
[1758193212092,63.99042997,246.18,246.17,0.69]
[1758193212296,39.31501617,246.18,246.17,0.69]
[1758193212496,36.58881617,246.18,246.17,0.69]
[1758193212799,5.52881617,246.18,246.17,0.69]
[1758193213000,36.58881617,246.18,246.17,0.69]
[1758193213519,31.06,246.18,246.17,0.69]
[1758193213815,0.06,246.19,246.17,4.75219719]
[1758193214022,31.06,246.18,246.17,0.69]
[1758193215022,31.08,246.18,246.17,0.69]
[1758193216018,31.06,246.18,246.17,0.69]
[1758193216195,32.52674777,246.18,246.17,0.69]
[1758193216517,31.06,246.18,246.17,0.69]
[1758193217316,32.52674777,246.18,246.17,0.69]
[1758193217908,37.41369413,246.18,246.17,0.69]
[1758193218516,37.41369413,246.18,246.17,0.03]
[1758193219608,37.41369413,246.18,246.17,0.69]
[1758193219826,31.06,246.18,246.17,0.69]
[1758193223930,0.06,246.19,246.17,0.69]
[1758193224125,31.06,246.18,246.17,0.69]
[1758193227040,31.06,246.18,246.17,4.75220451]
[1758193227212,0.06,246.19,246.17,4.75220451]
[1758193227411,31.06,246.18,246.17,0.03]
[1758193227628,31.12,246.19,246.17,0.03]
[1758193228129,31.12,246.19,246.18,26.66]
[1758193228130,0.06,246.19,246.18,26.66]
[1758193228517,31.12,246.22,246.18,26.66]
[1758193228518,1e-08,246.22,246.19,26.0]
[1758193228727,0.06,246.25,246.2,0.66]
[1758193229438,0.06,246.25,246.24,26.0]
[1758193229807,0.06,246.25,246.24,26.66]
[1758193230505,0.06,246.25,246.24,4.72107862]
[1758193231462,0.06,246.28,246.25,26.0]
[1758193231648,0.06,246.28,246.25,26.66]
[1758193231809,0.06,246.28,246.26,0.66]
[1758193232008,0.06,246.28,246.27,26.0]
[1758193232439,0.06,246.28,246.27,26.65]
[1758193233331,0.06,246.28,246.27,30.71058391]
[1758193234449,0.06,246.28,246.27,32.33551028]
[1758193235956,0.06,246.31,246.27,32.33551028]
[1758193236164,0.06,246.31,246.29,26.0]
[1758193236660,0.06,246.31,246.3,26.65]
[1758193237761,0.97432314,246.43,246.3,66.10075922]
[1758193237956,0.97432314,246.43,246.31,0.65]
[1758193238457,0.2,246.44,246.31,0.65]
[1758193238655,0.2,246.44,246.39,26.0]
[1758193238852,0.2,246.44,246.41,26.0]
[1758193239245,0.2,246.44,246.42,0.65]
[1758193239441,0.2,246.44,246.42,4.70614812]
[1758193239661,0.2,246.44,246.43,4.70794749]
[1758193245869,0.06,246.47,246.46,4.05745354]
[1758193246244,0.06,246.47,246.46,4.70745354]
[1758193246663,0.06,246.47,246.46,6.33119261]
[1758193251657,0.75,246.47,246.41,0.65]
[1758193251843,0.06,246.47,246.42,0.65]
[1758193252160,0.06,246.47,246.46,26.0]
[1758193252966,0.06,246.47,246.46,27.62380498]
[1758193253147,0.06,246.47,246.46,28.27380498]
[1758193253458,0.06,246.47,246.46,32.33125852]
[1758193254969,0.06,246.47,246.46,31.68125852]
[1758193255470,0.06,246.47,246.46,32.33125852]
[1758193257567,0.06,246.47,246.46,63.51125852]
[1758193260478,0.06,246.47,246.46,63.49125852]
[1758193264862,0.06,246.47,246.46,32.33125852]
[1758193265249,0.06,246.47,246.46,63.49125852]
[1758193266060,0.06,246.47,246.46,32.33125852]
[1758193266458,0.06,246.47,246.46,63.49125852]
[1758193267153,0.06,246.49,246.46,73.63489237]
[1758193267358,0.06,246.49,246.47,0.68]
[1758193267675,0.06,246.49,246.48,31.14]
[1758193267874,0.06,246.49,246.48,32.76334369]
[1758193268051,0.06,246.49,246.48,33.44334369]
[1758193268376,0.06,246.49,246.48,36.77429636]
[1758193268873,0.06,246.49,246.48,9.01142067]
[1758193269076,0.06,246.49,246.48,36.820468]
[1758193269586,0.06,246.49,246.48,37.500468]
[1758193270283,0.06,246.5,246.48,40.67525914]
[1758193270463,0.06,246.5,246.49,0.68]
[1758193270977,0.06,246.5,246.49,4.73695971]
[1758193271494,0.06,246.5,246.49,35.93695971]
[1758193272058,0.06,246.52,246.51,26.0]
[1758193272265,0.06,246.52,246.51,57.22]
[1758193272466,0.06,246.52,246.51,57.9]
[1758193273380,0.06,246.52,246.51,61.95663056]
[1758193273685,0.06,246.52,246.51,61.27663056]
[1758193273879,0.06,246.52,246.51,61.95663056]
[1758193274687,0.06,246.52,246.51,61.25663056]
[1758193274895,0.06,246.52,246.51,30.05663056]
[1758193275097,0.06,246.52,246.51,61.25663056]
[1758193275265,0.06,246.52,246.51,61.27663056]
[1758193275892,0.06,246.52,246.51,61.95663056]
[1758193276186,0.06,246.52,246.51,61.27663056]
[1758193276868,0.75,246.52,246.51,30.05663056]
[1758193277076,0.06,246.52,246.51,61.27663056]
[1758193277779,0.75,246.52,246.51,65.33145817]
[1758193278985,0.06,246.52,246.51,39.33145817]
[1758193279187,0.06,246.52,246.51,35.27663056]
[1758193280369,0.06,246.52,246.51,30.05663056]
[1758193280566,0.06,246.52,246.51,61.27663056]
[1758193280770,0.06,246.52,246.51,61.25663056]
[1758193280998,0.69,246.65,246.52,13.59559401]
[1758193281184,0.69,246.67,246.59,26.0]
[1758193281512,0.69,246.71,246.63,26.0]
[1758193281686,0.69,246.71,246.64,31.26]
[1758193281892,0.69,246.71,246.67,26.0]
[1758193282189,0.1,246.72,246.67,26.0]
[1758193282190,0.1,246.72,246.67,57.26]
[1758193282394,0.1,246.72,246.67,57.94]
[1758193282568,0.1,246.72,246.68,0.68]
[1758193282762,0.1,246.72,246.62,1.90641604]
[1758193282763,0.1,246.72,246.7,4.05350628]
[1758193283098,0.1,246.72,246.7,35.35350628]
[1758193283305,0.1,246.72,246.71,0.68]
[1758193283798,0.69,246.82,246.73,26.0]
[1758193284093,0.69,246.82,246.77,26.0]
[1758193284466,13.59559401,246.88,246.77,26.0]
[1758193284467,0.69,246.81,246.77,26.0]
[1758193284776,0.69,246.81,246.78,4.05219223]
[1758193285394,0.1,246.89,246.73,10.81251846]
[1758193285594,0.69,246.8,246.74,26.0]
[1758193285797,0.69,246.79,246.67,0.68]
[1758193285965,1.46162118,246.76,246.66,4.05416362]
[1758193286169,0.69,246.75,246.67,26.0]
[1758193286501,13.59559401,246.78,246.66,14.18957268]
[1758193286502,0.69,246.74,246.66,14.18957268]
[1758193286794,0.69,246.73,246.66,40.18957268]
[1758193287303,4.05252066,246.76,246.66,30.05416362]
[1758193287600,0.69,246.72,246.66,26.0]
[1758193287762,0.69,246.72,246.64,31.34]
[1758193287966,0.69,246.71,246.64,35.39434165]
[1758193288180,0.69,246.71,246.67,26.0]
[1758193288568,0.69,246.7,246.67,26.0]
[1758193289016,0.69,246.69,246.67,26.0]
[1758193289179,0.69,246.68,246.67,26.0]
[1758193289376,4.05307434,246.73,246.67,26.0]
[1758193289689,0.69,246.72,246.67,30.05398148]
[1758193290683,0.69,246.71,246.67,26.0]
[1758193290889,0.69,246.7,246.67,26.0]
[1758193291270,4.05259988,246.76,246.68,0.68]
[1758193291471,4.05259988,246.76,246.67,30.05394972]
[1758193291694,13.59559401,246.74,246.67,30.73394972]
[1758193292897,1.46162118,246.72,246.62,26.69]
[1758193293200,0.71,246.71,246.62,26.69]
[1758193293501,1.46162118,246.68,246.59,0.69]
[1758193293699,0.71,246.67,246.59,0.69]
[1758193293907,0.71,246.67,246.61,26.0]
[1758193294090,2.17162118,246.67,246.59,26.69]
[1758193294291,0.71,246.66,246.6,26.0]
[1758193294905,0.71,246.66,246.61,4.0549856]
[1758193295093,0.71,246.65,246.61,4.0549856]
[1758193295800,0.71,246.7,246.62,0.69]
[1758193296799,0.71,246.7,246.63,4.05465677]
[1758193297797,0.71,246.7,246.63,14.1912987]
[1758193298204,0.71,246.7,246.63,4.05465677]
[1758193298388,0.71,246.69,246.63,4.05465677]
[1758193298716,0.71,246.68,246.61,4.05482658]
[1758193299082,0.71,246.67,246.61,4.05482658]
[1758193299286,14.30559401,246.67,246.61,4.05482658]
[1758193299786,0.71,246.66,246.6,26.0]
[1758193300001,13.59559401,246.65,246.6,26.0]
[1758193300196,0.71,246.64,246.58,4.05534201]
[1758193301083,13.59559401,246.67,246.58,30.05534201]
[1758193301084,13.59559401,246.65,246.58,30.05534201]
[1758193301294,13.59559401,246.65,246.59,0.69]
[1758193301917,13.59559401,246.65,246.6,4.05515004]
[1758193302094,13.59559401,246.66,246.6,4.05515004]
[1758193302290,2.17162118,246.68,246.61,0.69]
[1758193302520,13.59559401,246.67,246.61,0.69]
[1758193302711,13.59559401,246.67,246.6,30.05515004]
[1758193303014,0.71,246.66,246.6,30.05515004]
[1758193303214,2.17162118,246.66,246.6,26.0]
[1758193303519,2.17162118,246.65,246.55,4.05597241]
[1758193303713,0.71,246.65,246.56,0.69]
[1758193304217,13.59559401,246.64,246.57,4.05564342]
[1758193304512,15.05721519,246.67,246.58,0.69]
[1758193304696,13.59559401,246.65,246.58,0.69]
[1758193305897,14.30559401,246.65,246.58,0.69]
[1758193306123,14.30559401,246.65,246.59,4.05531448]
[1758193306999,13.59559401,246.65,246.59,14.1936007]
[1758193307196,13.59559401,246.65,246.6,0.69]
[1758193307401,14.30559401,246.65,246.6,0.69]
[1758193307612,14.30559401,246.65,246.59,14.1936007]
[1758193307827,13.59559401,246.67,246.6,0.69]
[1758193308012,0.06,246.7,246.62,26.0]
[1758193308333,0.06,246.7,246.63,14.8812987]
[1758193308716,0.06,246.7,246.64,0.69]
[1758193308932,0.06,246.7,246.66,26.0]
[1758193309112,0.06,246.7,246.67,0.69]
[1758193309620,0.06,246.7,246.68,4.05383492]
[1758193310136,0.06,246.7,246.69,0.69]
[1758193311131,0.06,246.7,246.69,4.05367059]
[1758193311434,0.06,246.7,246.69,4.74367059]
[1758193312129,0.06,246.7,246.64,60.46318519]
[1758193312735,0.06,246.7,246.68,0.69]
[1758193313033,1e-08,246.7,246.68,0.69]
[1758193313210,1e-08,246.7,246.65,0.28432314]
[1758193313410,1e-08,246.7,246.69,0.69]
[1758193314231,1e-08,246.7,246.69,30.74367059]
[1758193316558,1e-08,246.7,246.69,30.05367059]
[1758193317049,1e-08,246.7,246.69,30.77367059]
[1758193317743,1e-08,246.7,246.69,4.05367059]
[1758193317920,0.72000001,246.7,246.69,4.05367059]
[1758193318113,1e-08,246.7,246.69,4.05367059]
[1758193318440,1e-08,246.7,246.66,4.05416362]
[1758193318627,0.72,246.69,246.66,4.05416362]
[1758193318829,0.72,246.68,246.66,4.05416362]
[1758193319030,14.31559402,246.7,246.66,4.05416362]
[1758193319220,0.72,246.69,246.66,4.05416362]
[1758193319628,13.59559401,246.68,246.63,14.19098945]
[1758193319938,15.0572152,246.7,246.63,14.19098945]
[1758193320248,0.72,246.67,246.63,14.19098945]
[1758193320623,13.59559402,246.7,246.64,0.72]
[1758193320936,13.59559402,246.7,246.63,14.19098945]
[1758193320937,15.7772152,246.7,246.63,4.05465677]
[1758193321139,15.05721519,246.68,246.61,4.05483668]
[1758193321349,13.59559401,246.66,246.61,4.05483668]
[1758193321523,13.59559401,246.64,246.6,0.03]
[1758193321725,19.11176738,246.64,246.6,0.03]
[1758193322026,15.05721519,246.61,246.6,0.03]
[1758193322243,13.59559401,246.61,246.6,0.03]
[1758193323628,19.81220079,246.61,246.6,0.03]
[1758193323830,20.09652393,246.61,246.6,0.03]
[1758193324043,52.87814511,246.61,246.6,0.03]
[1758193325149,51.41652393,246.61,246.6,0.03]
[1758193328353,49.95490275,246.61,246.6,0.03]
[1758193328654,51.41652393,246.61,246.6,0.03]
[1758193329340,51.43652393,246.61,246.6,0.03]
[1758193329526,49.97490275,246.61,246.6,0.03]
[1758193329731,51.43652393,246.61,246.6,0.03]
[1758193330531,51.29436236,246.61,246.6,0.03]
[1758193330847,51.43652393,246.61,246.6,0.03]
[1758193335256,49.97490275,246.61,246.6,0.03]
[1758193335437,51.43652393,246.61,246.6,0.03]
[1758193338153,52.89814511,246.61,246.6,0.03]
[1758193339743,54.54434235,246.61,246.6,0.03]
[1758193340852,52.25962255,246.61,246.6,0.03]
[1758193341060,54.54434235,246.61,246.6,0.03]
[1758193341250,39.59559401,246.58,246.57,0.03]
[1758193341559,74.18463695,246.58,246.57,0.03]
[1758193342854,90.4101159,246.58,246.57,0.03]
[1758193343061,78.2401159,246.58,246.57,0.03]
[1758193343444,75.9553961,246.58,246.57,0.03]
[1758193343644,78.2401159,246.58,246.57,0.03]
[1758193347154,17.65107296,246.58,246.57,0.03]
[1758193347358,51.25579276,246.58,246.57,0.03]
[1758193347553,51.5401159,246.58,246.57,0.03]
[1758193349101,49.2553961,246.58,246.57,0.71]
[1758193349281,48.97107296,246.58,246.57,0.71]
[1758193349770,49.11323453,246.58,246.57,0.71]
[1758193349950,49.2553961,246.58,246.57,0.71]
[1758193350352,48.97107296,246.58,246.57,0.71]
[1758193351872,49.2553961,246.58,246.57,0.71]
[1758193352253,45.07559401,246.58,246.57,0.71]
[1758193352978,49.4153961,246.58,246.57,0.03]
[1758193353778,51.7001159,246.58,246.57,0.03]
[1758193353983,52.3501159,246.58,246.57,0.03]
[1758193355287,51.7001159,246.58,246.57,0.03]
[1758193355655,49.4153961,246.58,246.57,0.03]
[1758193355875,51.7001159,246.58,246.57,0.03]
[1758193357381,52.3501159,246.58,246.57,0.03]
[1758193357760,50.0653961,246.58,246.57,0.03]
[1758193357954,20.2201159,246.58,246.57,0.71]
[1758193358169,51.6801159,246.58,246.57,0.71]
[1758193358354,51.39579276,246.58,246.57,0.71]
[1758193358771,51.6801159,246.58,246.57,0.71]
[1758193359361,49.3953961,246.58,246.57,0.71]
[1758193359564,51.6801159,246.58,246.57,0.71]
[1758193361180,13.59559401,246.58,246.57,0.71]
[1758193361363,45.05559401,246.58,246.57,0.71]
[1758193364456,13.59559401,246.58,246.57,0.71]
[1758193364693,0.06,246.6,246.57,4.76564342]
[1758193364861,31.44,246.59,246.57,4.76564342]
[1758193365168,31.44,246.59,246.58,0.68]
[1758193367370,31.44,246.59,246.58,4.73547895]
[1758193368760,0.06,246.6,246.58,4.73547895]
[1758193368995,0.06,246.6,246.59,0.68]
[1758193369379,0.06,246.6,246.59,4.73531448]
[1758193373668,0.06,246.6,246.59,0.68]
[1758193373890,0.06,246.6,246.59,4.73531448]
[1758193375778,0.06,246.6,246.59,0.68]
[1758193375979,13.65559401,246.6,246.57,4.75549307]
[1758193376576,13.65559401,246.6,246.58,0.7]
[1758193377270,13.65559401,246.6,246.59,0.67]
[1758193377492,0.06,246.6,246.59,0.67]
[1758193378672,0.06,246.6,246.59,4.72531448]
[1758193381193,0.06,246.6,246.58,0.03]
[1758193381794,0.06,246.6,246.58,0.7]
[1758193383192,0.06,246.6,246.58,0.03]
[1758193384912,4.11519997,246.6,246.58,0.03]
[1758193385078,13.59559401,246.59,246.58,0.03]
[1758193386399,0.06,246.6,246.58,0.03]
[1758193388315,0.06,246.6,246.59,0.72]
[1758193388677,0.06,246.63,246.59,26.72]
[1758193388881,0.06,246.63,246.6,0.72]
[1758193390304,0.06,246.63,246.61,4.0549856]
[1758193390822,0.06,246.63,246.62,0.72]
[1758193391827,0.06,246.63,246.62,4.77482118]
[1758193392020,1e-08,246.63,246.62,31.05914432]
[1758193392404,30.11559401,246.75,246.62,66.30238264]
[1758193392597,7.95668128,246.89,246.66,26.28432314]
[1758193392598,13.59559401,246.78,246.66,26.28432314]
[1758193392801,13.59559401,246.78,246.67,0.72]
[1758193393310,14.30559401,246.78,246.67,0.72]
[1758193393927,14.30559401,246.78,246.68,14.18842223]
[1758193394111,14.30559401,246.78,246.69,0.72]
[1758193394610,0.71,246.81,246.71,26.0]
[1758193394917,13.59559401,246.8,246.72,0.72]
[1758193395420,13.65559401,246.78,246.72,0.72]
[1758193395921,13.65559401,246.78,246.73,4.05301341]
[1758193396311,0.06,246.78,246.74,0.72]
[1758193396633,0.06,246.78,246.75,0.72]
[1758193397800,0.06,246.78,246.76,4.05252066]
[1758193398216,0.06,246.78,246.77,0.72]
[1758193399428,0.06,246.78,246.76,4.05252066]
[1758193399618,0.06,246.78,246.77,0.72]
[1758193401332,0.06,246.78,246.76,4.05252066]
[1758193401536,0.06,246.78,246.76,4.77252066]
[1758193402343,0.71,246.77,246.7,0.72]
[1758193402923,0.71,246.77,246.72,26.0]
[1758193403131,0.71,246.77,246.72,26.72]
[1758193403637,0.71,246.77,246.72,30.77315479]
[1758193404438,13.65559401,246.78,246.72,30.77315479]
[1758193404737,13.65559401,246.78,246.72,4.77315479]
[1758193406245,14.36559401,246.78,246.7,4.77350628]
[1758193406648,18.41782286,246.78,246.7,4.77350628]
[1758193406847,13.59559401,246.76,246.7,4.77350628]
[1758193407343,4.11222885,246.78,246.7,4.05350628]
[1758193407548,13.59559401,246.74,246.68,4.77373358]
[1758193408536,19.10692686,246.74,246.66,4.77400403]
[1758193408748,19.10692686,246.74,246.66,30.77400403]
[1758193408749,13.59559401,246.72,246.66,30.77400403]
[1758193409051,0.71,246.71,246.64,4.05433881]
[1758193409240,13.59559401,246.7,246.64,4.77433881]
[1758193411147,0.71,246.73,246.65,0.72]
[1758193411354,13.59559401,246.72,246.65,0.72]
[1758193411532,13.59559401,246.7,246.64,30.05433881]
[1758193412550,13.59559401,246.69,246.64,30.05433881]
[1758193412742,0.68,246.68,246.64,30.05433881]
[1758193412931,14.27559401,246.73,246.65,0.7]
[1758193414655,14.27559401,246.73,246.66,4.05416362]
[1758193415052,14.27559401,246.73,246.66,4.75416362]
[1758193417433,13.59559401,246.71,246.64,30.05434193]
[1758193417637,19.10714766,246.73,246.64,30.05434193]
[1758193417638,0.68,246.7,246.64,30.05434193]
[1758193417838,13.59559401,246.69,246.64,30.75434193]
[1758193418053,14.27559401,246.69,246.64,30.75434193]
[1758193420347,23.38670537,246.86,246.64,30.75434193]
[1758193420348,0.06,246.78,246.67,26.0]
[1758193420540,0.06,246.78,246.65,0.98432314]
[1758193420541,0.06,246.78,246.68,26.7]
[1758193420740,0.06,246.78,246.69,0.7]
[1758193420961,13.65559401,246.78,246.69,0.7]
[1758193422445,0.06,246.78,246.73,26.0]
[1758193422646,0.06,246.78,246.73,26.7]
[1758193422965,0.68,246.77,246.73,26.0]
[1758193423344,0.68,246.76,246.73,26.0]
[1758193423547,0.68,246.75,246.73,26.0]
[1758193423941,0.74,246.78,246.73,26.0]
[1758193424142,0.68,246.77,246.74,4.05284915]
[1758193424343,0.06,246.78,246.74,4.05284915]
[1758193424549,13.59559401,246.77,246.74,4.05284915]
[1758193425466,0.74,246.78,246.74,4.05284915]
[1758193425467,0.06,246.78,246.74,4.05284915]
[1758193426867,0.06,246.78,246.74,4.75284915]
[1758193427070,0.06,246.78,246.74,4.05284915]